fUSD/lending_fUSD_20240116
["ID","MTS","AMOUNT","RATE_DAILY","PERIOD"]
[311808162,1705420755032,-3800.315582,0.00047945,120]
[311808163,1705420755056,-1227.481133,0.00047945,120]
[311808164,1705420755079,-905.841646,0.00047945,120]
[311808165,1705420755103,-8236.718016,0.00047945,120]
[311808166,1705420755127,-3506.743762,0.00047945,120]
[311808167,1705420755150,-12618.932199,0.00047945,120]
[311808168,1705420755182,-500.0,0.00047987,35]
[311808169,1705420755213,-4713.86161926,0.00047999,50]
[311808170,1705420755542,-500.0,0.00048,90]
[311808171,1705420755568,-32590.00611211,0.00048,120]
[311808172,1705420755592,-1000.0,0.00048,120]
[311808173,1705420755617,-50000.0,0.00048,120]
[311808174,1705420755641,-250.0,0.00048,60]
[311808175,1705420755665,-652.38,0.00048,120]
[311808176,1705420755696,-170.0,0.00048,120]
[311808177,1705420755721,-18000.0,0.00048,120]
[311808178,1705420755747,-600.0,0.00048,120]
[311808179,1705420755773,-4929.0,0.00048,120]
[311808180,1705420755797,-19142.29096437,0.00048,120]
[311808181,1705420755822,-5592.35589363,0.00048,120]
[311808182,1705420755848,-499.0,0.00048,120]
[311808183,1705420755872,-300.0,0.00048,49]
[311808184,1705420755895,-1202.0,0.00048,120]
[311808185,1705420755920,-5739.493977,0.00048,53]
[311808186,1705420755944,-161.0,0.00048,90]
[311808187,1705420755967,-100100.84318579,0.000482,120]
[311808188,1705420755995,-100100.84318578,0.000482,120]
[311808189,1705420756020,-100100.84318578,0.000482,120]
[311808190,1705420756043,-100100.84318578,0.000482,120]
[311808191,1705420756067,-100100.84318578,0.000482,120]
[311808192,1705420756090,-1046.23705627,0.0004825,120]
[311808193,1705420756114,-400.0,0.00048384,120]
[311808194,1705420756139,-46000.0,0.000485,120]
[311808195,1705420756163,-5295.333779,0.00048767,120]
[311808196,1705420756188,-42995.096458,0.00048767,120]
[311808197,1705420756212,-613.740566,0.00048767,120]
[311808198,1705420756237,-452.920823,0.00048767,120]
[311808199,1705420756261,-4118.359008,0.00048767,120]
[311808200,1705420756285,-1753.371881,0.00048767,120]
[311808201,1705420756309,-6309.466099,0.00048767,120]
[311808202,1705420756333,-203.15,0.000488,120]
[311808203,1705420756358,-30556.70668137,0.000488,35]
[311808204,1705420756382,-350.0,0.00048877,120]
[311808205,1705420756405,-1311.33914722,0.000489,60]
[311808206,1705420756429,-186.0,0.00048954,90]
[311808207,1705420756455,-296.0,0.00048965,90]
[311808208,1705420756480,-500.0,0.00048987,37]
[311808209,1705420756504,-3286.30447646,0.00049,120]
[311808210,1705420756528,-1276.8,0.00049,120]
[311808211,1705420756558,-1000.0,0.00049,60]
[311808212,1705420756582,-1000.0,0.00049,60]
[311808213,1705420756606,-1000.0,0.00049,60]
[311808214,1705420756633,-1850.969997,0.00049,60]
[311808215,1705420756667,-250.0,0.00049,60]
[311808216,1705420756691,-600.0,0.00049,120]
[311808217,1705420756714,-11500.0,0.00049,120]
[311808218,1705420756739,-591.4334009,0.00049,120]
[311808219,1705420756766,-1000.0,0.00049,60]
[311808220,1705420756791,-1000.0,0.00049,60]
[311808221,1705420756817,-300.0,0.00049,50]
[311808222,1705420756841,-2000.0,0.00049,35]
[311808223,1705420756868,-4663.2,0.0004912,117]
[311808224,1705420756899,-400.0,0.00049296,120]
[311808225,1705420756924,-500.0,0.00049315,60]
[311808226,1705420756949,-506.03161409,0.00049315,60]
[311808227,1705420756976,-500.0,0.00049315,60]
[311808228,1705420757000,-500.0,0.00049315,60]
[311808229,1705420757026,-500.0,0.00049315,60]
[311808230,1705420757051,-500.0,0.00049315,60]
[311808231,1705420757075,-500.0,0.00049315,60]
[311808232,1705420757100,-2432.57,0.00049315,60]
[311808233,1705420757124,-182.27772361,0.00049315,60]
[311808234,1705420757150,-500.0,0.00049315,60]
[311808235,1705420757174,-500.0,0.00049315,60]
[311808236,1705420757202,-616.96,0.00049315,60]
[311808237,1705420757226,-500.0,0.00049315,60]
[311808238,1705420757248,-500.0,0.00049315,60]
[311808239,1705420757271,-500.0,0.00049315,60]
[311808240,1705420757295,-500.0,0.00049315,60]
[311808241,1705420757319,-500.0,0.00049315,60]
[311808242,1705420757343,-500.0,0.00049315,60]
[311808243,1705420757366,-568.87,0.00049315,60]
[311808244,1705420757389,-500.0,0.00049315,60]
[311808245,1705420757413,-500.0,0.00049315,60]
[311808246,1705420757437,-774.64,0.00049315,60]
[311808247,1705420757461,-500.0,0.00049315,60]
[311808248,1705420757486,-500.0,0.00049315,60]
[311808249,1705420757509,-500.0,0.00049315,60]
[311808250,1705420757540,-500.0,0.00049315,60]
[311808251,1705420757565,-500.0,0.00049315,60]
[311808252,1705420757589,-500.0,0.00049315,60]
[311808253,1705420757613,-500.0,0.00049315,60]
[311808254,1705420757638,-500.0,0.00049315,60]
[311808255,1705420757662,-500.0,0.00049315,60]
[311808256,1705420757686,-500.0,0.00049315,60]
[311808257,1705420757712,-219.58226308,0.00049315,60]
[311808258,1705420757737,-500.0,0.00049315,60]
[311808259,1705420757762,-500.0,0.00049315,60]
[311808260,1705420757786,-500.0,0.00049315,60]
[311808261,1705420757810,-500.0,0.00049315,60]
[311808262,1705420757834,-500.0,0.00049315,60]
[311808263,1705420757859,-500.0,0.00049315,60]
[311808264,1705420757883,-500.0,0.00049315,60]
[311808265,1705420757906,-571.67,0.00049315,60]
[311808266,1705420757930,-500.0,0.00049315,60]
[311808267,1705420757953,-577.7,0.00049315,60]
[311808268,1705420757977,-500.0,0.00049315,60]
[311808269,1705420758000,-500.0,0.00049315,60]
[311808270,1705420758026,-500.0,0.00049315,60]
[311808271,1705420758050,-500.0,0.00049315,60]
[311808272,1705420758075,-500.0,0.00049315,60]
[311808273,1705420758099,-500.0,0.00049315,60]
[311808274,1705420758371,-500.0,0.00049315,60]
[311808275,1705420758397,-500.0,0.00049315,60]
[311808276,1705420758424,-500.0,0.00049315,60]
[311808277,1705420758451,-500.0,0.00049315,60]
[311808278,1705420758478,-500.0,0.00049315,60]
[311808279,1705420758503,-547.51,0.00049315,60]
[311808280,1705420758529,-500.0,0.00049315,60]
[311808281,1705420758559,-515.34717215,0.00049315,60]
[311808282,1705420758586,-500.0,0.00049315,60]
[311808283,1705420758612,-624.47638835,0.00049315,60]
[311808284,1705420758637,-500.0,0.00049315,60]
[311808285,1705420758663,-500.0,0.00049315,60]
[311808286,1705420758688,-500.0,0.00049315,60]
[311808287,1705420758715,-500.0,0.00049315,60]
[311808288,1705420758742,-349.22598517,0.00049315,60]
[311808289,1705420758766,-500.0,0.00049315,60]
[311808290,1705420758790,-500.0,0.00049315,60]
[311808291,1705420758813,-500.0,0.00049315,60]
[311808292,1705420758836,-500.0,0.00049315,60]
[311808293,1705420758860,-500.0,0.00049315,60]
[311808294,1705420758884,-550.1996002,0.00049315,60]
[311808295,1705420758907,-500.0,0.00049315,60]
[311808296,1705420758931,-500.0,0.00049315,60]
[311808297,1705420758954,-500.0,0.00049315,60]
[311808298,1705420758979,-741.2,0.00049315,60]
[311808299,1705420759002,-1000.0,0.00049315,60]
[311808300,1705420759026,-610.99866165,0.00049315,60]
[311808301,1705420759050,-500.0,0.00049315,60]
[311808302,1705420759074,-500.0,0.00049315,60]
[311808303,1705420759098,-500.0,0.00049315,60]
[311808304,1705420759121,-348.76266689,0.00049315,60]
[311808305,1705420759776,401.43585637,0.00020975,2]
[311808306,1705420764219,-376.04106656,0.000345,120]
[311808307,1705420764359,-10797.84838817,0.00043,120]
[311808308,1705420764394,-275.0,0.00044836,120]
[311808309,1705420764421,-151.0,0.00044836,120]
[311808310,1705420764445,-151.0,0.00044836,120]
[311808311,1705420764472,-151.0,0.00044836,120]
[311808312,1705420764499,-151.0,0.00044836,120]
[311808313,1705420764524,-151.0,0.00044836,120]
[311808314,1705420764554,-151.0,0.00044836,120]
[311808315,1705420764597,-151.23733311,0.00049315,60]
[311808316,1705420764622,-500.0,0.00049315,60]
[311808317,1705420764646,-500.0,0.00049315,60]
[311808318,1705420764670,-500.0,0.00049315,60]
[311808319,1705420764694,-500.0,0.00049315,60]
[311808320,1705420764719,-527.1,0.00049315,60]
[311808321,1705420764745,-500.0,0.00049315,60]
[311808322,1705420764769,-500.0,0.00049315,60]
[311808323,1705420764793,-500.0,0.00049315,60]
[311808324,1705420764817,-353.03020483,0.00049315,60]
[311808325,1705420764841,-500.0,0.00049315,60]
[311808326,1705420764865,-526.66424589,0.00049315,60]
[311808327,1705420764890,-500.0,0.00049315,60]
[311808328,1705420764914,-500.0,0.00049315,60]
[311808329,1705420764937,-500.0,0.00049315,60]
[311808330,1705420764962,-500.0,0.00049315,60]
[311808331,1705420764987,-500.0,0.00049315,60]
[311808332,1705420765011,-500.0,0.00049315,60]
[311808333,1705420765037,-500.0,0.00049315,60]
[311808334,1705420765062,-500.0,0.00049315,60]
[311808335,1705420765087,-500.0,0.00049315,60]
[311808336,1705420765112,-500.0,0.00049315,60]
[311808337,1705420765150,-500.0,0.00049315,60]
[311808338,1705420765179,-500.0,0.00049315,60]
[311808339,1705420765204,-500.0,0.00049315,60]
[311808340,1705420765230,-500.0,0.00049315,60]
[311808341,1705420765257,-500.0,0.00049315,60]
[311808342,1705420765283,-500.0,0.00049315,60]
[311808343,1705420765315,-500.0,0.00049315,60]
[311808344,1705420765342,-500.0,0.00049315,60]
[311808345,1705420765367,-500.0,0.00049315,60]
[311808346,1705420765397,-500.0,0.00049315,60]
[311808347,1705420765423,-500.0,0.00049315,60]
[311808348,1705420765447,-500.0,0.00049315,60]
[311808349,1705420765471,-500.0,0.00049315,60]
[311808350,1705420765497,-500.0,0.00049315,60]
[311808351,1705420765524,-500.0,0.00049315,60]
[311808352,1705420765548,-500.0,0.00049315,60]
[311808353,1705420765574,-386.00335276,0.00049315,60]
[311808354,1705420765599,-500.0,0.00049315,60]
[311808355,1705420765623,-500.0,0.00049315,60]
[311808356,1705420765648,-500.0,0.00049315,60]
[311808357,1705420765672,-500.0,0.00049315,60]
[311808358,1705420765697,-500.0,0.00049315,60]
[311808359,1705420765722,-524.14,0.00049315,60]
[311808360,1705420765751,-527.69,0.00049315,60]
[311808361,1705420765780,-500.0,0.00049315,60]
[311808362,1705420765806,-500.0,0.00049315,60]
[311808363,1705420765831,-500.0,0.00049315,60]
[311808364,1705420765855,-500.0,0.00049315,60]
[311808365,1705420765880,-412.07322482,0.00049315,60]
[311808366,1705420765906,-500.0,0.00049315,60]
[311808367,1705420765932,-500.0,0.00049315,60]
[311808368,1705420765956,-553.51188513,0.00049315,60]
[311808369,1705420765985,-500.0,0.00049315,60]
[311808370,1705420766011,-500.0,0.00049315,60]
[311808371,1705420766037,-603.94,0.00049315,60]
[311808372,1705420766063,-500.0,0.00049315,60]
[311808373,1705420766087,-500.0,0.00049315,60]
[311808374,1705420766113,-518.42,0.00049315,60]
[311808375,1705420766140,-500.0,0.00049315,60]
[311808376,1705420766170,-500.0,0.00049315,60]
[311808377,1705420766197,-500.0,0.00049315,60]
[311808378,1705420766223,-500.0,0.00049315,60]
[311808379,1705420766257,-500.0,0.00049315,60]
[311808380,1705420766283,-500.0,0.00049315,60]
[311808381,1705420766308,-1226.06,0.00049315,60]
[311808382,1705420766688,-552.72,0.00049315,60]
[311808383,1705420766714,-500.0,0.00049315,60]
[311808384,1705420766740,-500.0,0.00049315,60]
[311808385,1705420766763,-500.0,0.00049315,60]
[311808386,1705420766788,-500.0,0.00049315,60]
[311808387,1705420766811,-500.0,0.00049315,60]
[311808388,1705420766834,-500.0,0.00049315,60]
[311808389,1705420766858,-820.67,0.00049315,60]
[311808390,1705420766881,-500.0,0.00049315,60]
[311808391,1705420766906,-500.0,0.00049315,60]
[311808392,1705420766931,-500.0,0.00049315,60]
[311808393,1705420766956,-500.0,0.00049315,60]
[311808394,1705420766982,-500.0,0.00049315,60]
[311808395,1705420767008,-500.0,0.00049315,60]
[311808396,1705420767034,-500.0,0.00049315,60]
[311808397,1705420767057,-500.0,0.00049315,60]
[311808398,1705420767080,-500.0,0.00049315,60]
[311808399,1705420767106,-500.0,0.00049315,60]
[311808400,1705420767132,-500.0,0.00049315,60]
[311808401,1705420767156,-588.09,0.00049315,60]
[311808402,1705420767179,-500.0,0.00049315,60]
[311808403,1705420767216,-500.0,0.00049315,60]
[311808404,1705420767242,-500.0,0.00049315,60]
[311808405,1705420767266,-500.0,0.00049315,60]
[311808406,1705420767290,-179.85536455,0.00049315,60]
[311808407,1705420767315,-500.0,0.00049315,60]
[311808408,1705420767340,-500.0,0.00049315,60]
[311808409,1705420767364,-500.0,0.00049315,60]
[311808410,1705420767388,-500.0,0.00049315,60]
[311808411,1705420767413,-500.0,0.00049315,60]
[311808412,1705420767439,-500.0,0.00049315,60]
[311808413,1705420767464,-500.0,0.00049315,60]
[311808414,1705420767488,-500.0,0.00049315,60]
[311808415,1705420767512,-500.0,0.00049315,60]
[311808416,1705420767539,-598.11,0.00049315,60]
[311808417,1705420767562,-300.0,0.00049315,60]
[311808418,1705420767587,-177.54581488,0.00049315,60]
[311808419,1705420767611,-500.0,0.00049315,60]
[311808420,1705420767636,-500.0,0.00049315,60]
[311808421,1705420767659,-500.0,0.00049315,60]
[311808422,1705420767683,-500.0,0.00049315,60]
[311808423,1705420767708,-500.0,0.00049315,60]
[311808424,1705420767734,-500.0,0.00049315,60]
[311808425,1705420767758,-500.0,0.00049315,60]
[311808426,1705420767783,-500.0,0.00049315,60]
[311808427,1705420767808,-500.0,0.00049315,60]
[311808428,1705420767832,-539.66790391,0.00049315,60]
[311808429,1705420767856,-500.0,0.00049315,60]
[311808430,1705420767880,-500.0,0.00049315,60]
[311808431,1705420767904,-565.98758892,0.00049315,60]
[311808432,1705420767928,-400.72404532,0.00049315,60]
[311808433,1705420767951,-531.33,0.00049315,60]
[311808434,1705420767976,-500.0,0.00049315,60]
[311808435,1705420768001,-500.0,0.00049315,60]
[311808436,1705420768025,-508.44118691,0.00049315,60]
[311808437,1705420768049,-500.0,0.00049315,60]
[311808438,1705420768073,-500.0,0.00049315,60]
[311808439,1705420768096,-500.0,0.00049315,60]
[311808440,1705420768120,-500.0,0.00049315,60]
[311808441,1705420768143,-500.0,0.00049315,60]
[311808442,1705420768170,-501.19511012,0.00049315,60]
[311808443,1705420768195,-500.0,0.00049315,60]
[311808444,1705420768219,-500.0,0.00049315,60]
[311808445,1705420768245,-500.0,0.00049315,60]
[311808446,1705420768275,-500.0,0.00049315,60]
[311808447,1705420768300,-500.0,0.00049315,60]
[311808448,1705420768325,-500.0,0.00049315,60]
[311808449,1705420768350,-500.0,0.00049315,60]
[311808450,1705420768375,-633.79,0.00049315,60]
[311808451,1705420768401,-500.0,0.00049315,60]
[311808452,1705420768427,-500.0,0.00049315,60]
[311808453,1705420768453,-500.0,0.00049315,60]
[311808454,1705420768478,-624.33,0.00049315,60]
[311808455,1705420768506,-589.52,0.00049315,60]
[311808456,1705420768530,-500.0,0.00049315,60]
[311808457,1705420768557,-500.0,0.00049315,60]
[311808458,1705420768582,-500.0,0.00049315,60]
[311808459,1705420768606,-500.0,0.00049315,60]
[311808460,1705420768631,-500.0,0.00049315,60]
[311808461,1705420768655,-500.0,0.00049315,60]
[311808462,1705420768679,-500.0,0.00049315,60]
[311808463,1705420768706,-500.0,0.00049315,60]
[311808464,1705420768733,-525.99855676,0.00049315,60]
[311808465,1705420768756,-500.0,0.00049315,60]
[311808466,1705420768781,-543.95,0.00049315,60]
[311808467,1705420768805,-1016.79,0.00049315,60]
[311808468,1705420768829,-505.82,0.00049315,60]
[311808469,1705420768856,-500.0,0.00049315,60]
[311808470,1705420768880,-514.02,0.00049315,60]
[311808471,1705420768903,-500.0,0.00049315,60]
[311808472,1705420768927,-500.0,0.00049315,60]
[311808473,1705420768951,-500.0,0.00049315,60]
[311808474,1705420768977,-500.0,0.00049315,60]
[311808475,1705420769002,-500.0,0.00049315,60]
[311808476,1705420769025,-1999.34,0.00049315,60]
[311808477,1705420769049,-1349.58,0.00049315,60]
[311808478,1705420769072,-500.0,0.00049315,60]
[311808479,1705420769096,-620.94,0.00049315,60]
[311808480,1705420769120,-500.0,0.00049315,60]
[311808481,1705420769146,-500.0,0.00049315,60]
[311808482,1705420769169,-500.0,0.00049315,60]
[311808483,1705420769193,-500.0,0.00049315,60]
[311808484,1705420769217,-500.0,0.00049315,60]
[311808485,1705420769242,-500.0,0.00049315,60]
[311808486,1705420769515,-500.0,0.00049315,60]
[311808487,1705420769542,-500.0,0.00049315,60]
[311808488,1705420769565,-882.18,0.00049315,60]
[311808489,1705420769589,-500.0,0.00049315,60]
[311808490,1705420769613,-500.0,0.00049315,60]
[311808491,1705420769639,-500.0,0.00049315,60]
[311808492,1705420769663,-500.0,0.00049315,60]
[311808493,1705420769687,-500.0,0.00049315,60]
[311808494,1705420769712,-500.0,0.00049315,60]
[311808495,1705420769737,-500.0,0.00049315,60]
[311808496,1705420769760,-500.0,0.00049315,60]
[311808497,1705420769785,-500.0,0.00049315,60]
[311808498,1705420769809,-500.0,0.00049315,60]
[311808499,1705420769833,-500.0,0.00049315,60]
[311808500,1705420769856,-500.0,0.00049315,60]
[311808501,1705420769879,-500.0,0.00049315,60]
[311808502,1705420769903,-500.0,0.00049315,60]
[311808503,1705420769925,-500.0,0.00049315,60]
[311808504,1705420769950,-500.0,0.00049315,60]
[311808505,1705420769973,-500.0,0.00049315,60]
[311808506,1705420769997,-500.0,0.00049315,60]
[311808507,1705420770020,-500.0,0.00049315,60]
[311808508,1705420770045,-500.0,0.00049315,60]
[311808509,1705420770068,-500.0,0.00049315,60]
[311808510,1705420770091,-500.0,0.00049315,60]
[311808511,1705420770115,-559.04,0.00049315,60]
[311808512,1705420770140,-763.65,0.00049315,60]
[311808513,1705420770163,-500.0,0.00049315,60]
[311808514,1705420770187,-500.0,0.00049315,60]
[311808515,1705420770211,-500.0,0.00049315,60]
[311808516,1705420770236,-500.0,0.00049315,60]
[311808517,1705420770259,-500.0,0.00049315,60]
[311808518,1705420770282,-500.0,0.00049315,60]
[311808519,1705420770306,-500.0,0.00049315,60]
[311808520,1705420770329,-500.0,0.00049315,60]
[311808521,1705420770354,-500.0,0.00049315,60]
[311808522,1705420770378,-500.0,0.00049315,60]
[311808523,1705420770402,-569.14,0.00049315,60]
[311808524,1705420770425,-682.17,0.00049315,60]
[311808525,1705420770450,-500.0,0.00049315,60]
[311808526,1705420770473,-313.38546076,0.00049315,60]
[311808527,1705420770497,-960.69,0.00049315,60]
[311808528,1705420770520,-500.0,0.00049315,60]
[311808529,1705420770545,-500.0,0.00049315,60]
[311808530,1705420770567,-500.0,0.00049315,60]
[311808531,1705420770591,-500.0,0.00049315,60]
[311808532,1705420770615,-642.79,0.00049315,60]
[311808533,1705420770639,-500.0,0.00049315,60]
[311808534,1705420770663,-500.0,0.00049315,60]
[311808535,1705420770687,-500.0,0.00049315,60]
[311808536,1705420770712,-614.2,0.00049315,60]
[311808537,1705420770736,-500.0,0.00049315,60]
[311808538,1705420770760,-500.0,0.00049315,60]
[311808539,1705420770784,-500.0,0.00049315,60]
[311808540,1705420770807,-498.61940842,0.00049315,60]
[311808541,1705420770830,-522.48587974,0.00049315,60]
[311808542,1705420770853,-500.0,0.00049315,60]
[311808543,1705420770877,-500.0,0.00049315,60]
[311808544,1705420770900,-500.0,0.00049315,60]
[311808545,1705420770923,-576.16,0.00049315,60]
[311808546,1705420770946,-500.0,0.00049315,60]
[311808547,1705420770969,-500.0,0.00049315,60]
[311808548,1705420770993,-798.66,0.00049315,60]
[311808549,1705420771016,-500.0,0.00049315,60]
[311808550,1705420771039,-500.0,0.00049315,60]
[311808551,1705420771062,-500.0,0.00049315,60]
[311808552,1705420771086,-500.0,0.00049315,60]
[311808553,1705420771110,-500.0,0.00049315,60]
[311808554,1705420771133,-500.0,0.00049315,60]
[311808555,1705420771156,-500.0,0.00049315,60]
[311808556,1705420771183,-500.0,0.00049315,60]
[311808557,1705420771208,-500.0,0.00049315,60]
[311808558,1705420771234,-1623.62,0.00049315,60]
[311808559,1705420771259,-500.0,0.00049315,60]
[311808560,1705420771283,-603.54,0.00049315,60]
[311808561,1705420771312,-500.0,0.00049315,60]
[311808562,1705420771335,-500.0,0.00049315,60]
[311808563,1705420771360,-532.57,0.00049315,60]
[311808564,1705420771383,-500.0,0.00049315,60]
[311808565,1705420771408,-500.0,0.00049315,60]
[311808566,1705420771432,-500.0,0.00049315,60]
[311808567,1705420771457,-515.58,0.00049315,60]
[311808568,1705420771483,-500.0,0.00049315,60]
[311808569,1705420771506,-500.0,0.00049315,60]
[311808570,1705420771530,-500.0,0.00049315,60]
[311808571,1705420771558,-500.52343722,0.00049315,60]
[311808572,1705420771582,-500.0,0.00049315,60]
[311808573,1705420771605,-500.0,0.00049315,60]
[311808574,1705420771630,-921.88,0.00049315,60]
[311808575,1705420771653,-500.0,0.00049315,60]
[311808576,1705420771677,-500.0,0.00049315,60]
[311808577,1705420771701,-500.0,0.00049315,60]
[311808578,1705420771725,-1196.18,0.00049315,60]
[311808579,1705420771751,-500.0,0.00049315,60]
[311808580,1705420771775,-500.0,0.00049315,60]
[311808581,1705420771799,-500.0,0.00049315,60]
[311808582,1705420771823,-1113.96,0.00049315,60]
[311808583,1705420771847,-500.28,0.00049315,60]
[311808584,1705420771871,-500.0,0.00049315,60]
[311808585,1705420771895,-500.0,0.00049315,60]
[311808586,1705420771919,-500.0,0.00049315,60]
[311808587,1705420771942,-500.0,0.00049315,60]
[311808588,1705420771966,-500.0,0.00049315,60]
[311808589,1705420771993,-500.0,0.00049315,60]
[311808590,1705420772017,-506.32766596,0.00049315,60]
[311808591,1705420772283,-500.0,0.00049315,60]
[311808592,1705420772308,-500.0,0.00049315,60]
[311808593,1705420772331,-500.0,0.00049315,60]
[311808594,1705420772355,-500.0,0.00049315,60]
[311808595,1705420772380,-500.0,0.00049315,60]
[311808596,1705420772404,-777.6,0.00049315,60]
[311808597,1705420772430,-548.22,0.00049315,60]
[311808598,1705420772454,-500.0,0.00049315,60]
[311808599,1705420772478,-977.52,0.00049315,60]
[311808600,1705420772506,-500.0,0.00049315,60]
[311808601,1705420772529,-634.59,0.00049315,60]
[311808602,1705420772555,-500.0,0.00049315,60]
[311808603,1705420772579,-500.0,0.00049315,60]
[311808604,1705420772603,-500.0,0.00049315,60]
[311808605,1705420772628,-491.42675218,0.00049315,60]
[311808606,1705420772653,-500.0,0.00049315,60]
[311808607,1705420772677,-235.00968617,0.00049315,60]
[311808608,1705420772702,-550.05,0.00049315,60]
[311808609,1705420772726,-881.17,0.00049315,60]
[311808610,1705420772754,-500.0,0.00049315,60]
[311808611,1705420772780,-500.0,0.00049315,60]
[311808612,1705420772808,-500.0,0.00049315,60]
[311808613,1705420772834,-500.0,0.00049315,60]
[311808614,1705420772860,-500.0,0.00049315,60]
[311808615,1705420772884,-500.0,0.00049315,60]
[311808616,1705420772909,-905.54,0.00049315,60]
[311808617,1705420772933,-500.0,0.00049315,60]
[311808618,1705420772957,-500.0,0.00049315,60]
[311808619,1705420772981,-500.0,0.00049315,60]
[311808620,1705420773007,-500.0,0.00049315,60]
[311808621,1705420773034,-500.0,0.00049315,60]
[311808622,1705420773061,-582.1,0.00049315,60]
[311808623,1705420773088,-500.0,0.00049315,60]
[311808624,1705420773114,-1068.23,0.00049315,60]
[311808625,1705420773142,-690.77,0.00049315,60]
[311808626,1705420773168,-500.0,0.00049315,60]
[311808627,1705420773192,-500.0,0.00049315,60]
[311808628,1705420773217,-500.83,0.00049315,60]
[311808629,1705420773248,-500.0,0.00049315,60]
[311808630,1705420773275,-500.0,0.00049315,60]
[311808631,1705420773300,-500.0,0.00049315,60]
[311808632,1705420773326,-500.0,0.00049315,60]
[311808633,1705420773352,-512.17874055,0.00049315,60]
[311808634,1705420773378,-500.0,0.00049315,60]
[311808635,1705420773402,-500.0,0.00049315,60]
[311808636,1705420773427,-500.0,0.00049315,60]
[311808637,1705420773459,-500.0,0.00049315,60]
[311808638,1705420773492,-703.24,0.00049315,60]
[311808639,1705420773518,-500.0,0.00049315,60]
[311808640,1705420773547,-500.0,0.00049315,60]
[311808641,1705420773573,-500.0,0.00049315,60]
[311808642,1705420773598,-500.0,0.00049315,60]
[311808643,1705420773624,-500.0,0.00049315,60]
[311808644,1705420773650,-769.78,0.00049315,60]
[311808645,1705420773675,-500.0,0.00049315,60]
[311808646,1705420773700,-500.0,0.00049315,60]
[311808647,1705420773727,-507.31485002,0.00049315,60]
[311808648,1705420773755,-500.0,0.00049315,60]
[311808649,1705420773780,-500.0,0.00049315,60]
[311808650,1705420773806,-500.0,0.00049315,60]
[311808651,1705420773832,-500.0,0.00049315,60]
[311808652,1705420773857,-500.0,0.00049315,60]
[311808653,1705420773883,-594.43,0.00049315,60]
[311808654,1705420773907,-514.29043368,0.00049315,60]
[311808655,1705420773931,-503.204569,0.00049315,60]
[311808656,1705420773957,-540.58,0.00049315,60]
[311808657,1705420773983,-518.79,0.00049315,60]
[311808658,1705420774009,-559.18,0.00049315,60]
[311808659,1705420774034,-506.35601443,0.00049315,60]
[311808660,1705420774058,-571.65,0.00049315,60]
[311808661,1705420774082,-1307.69,0.00049315,60]